Cogmind - Beta 10 X1 @@@ ROGUE MODE // 2020.06.14 @ 14:32:03 Player: Decinym Result: Destroyed by S-10 Pest with Light Assault Rifle Performance ------------- Evolutions (0) 0 Regions Visited (2) 400 Robots Destroyed (8) 40 Value Destroyed (103) 103 Prototype IDs (0) 0 Alien Tech Used (0) 0 Bonus (-18) -18 TOTAL SCORE: 525 Bonus ------- Friendly Fire -18 Cogmind --------- Core Integrity 0/250 Matter 238/300 Energy 96/250 System Corruption 0% Temperature Cool (0) Movement Rolling (90) Location -10/Mines Parts ------- > --- POWER (1) -------- Ion Engine > --- PROPULSION (2) --- Wheel Compact Wheel > --- UTILITY (2) ------ Small Storage Unit > --- WEAPON (2) ------- Light Assault Rifle > --- INVENTORY (6) ---- Light Treads Aluminum Leg Peak State ------------ > --- POWER ------------ Light Ion Engine > --- PROPULSION ------- Aluminum Leg Aluminum Leg > --- UTILITY ---------- Small Storage Unit > --- WEAPON ----------- Assault Rifle Light Assault Rifle > --- INVENTORY -------- Ion Engine Light Treads Light Treads Wheel Compact Wheel Light Assault Rifle [Rating: 6] Favorites ----------- Power Light Ion Engine Engine Light Ion Engine Propulsion Aluminum Leg Leg Aluminum Leg Wheel Wheel Utility Small Storage Unit Storage Small Storage Unit Weapon Assault Rifle Ballistic Gun Assault Rifle Build | -11 -10 -10 ------- Run | Scr Mat Min Slots Evolved . | . . . Power . | . . . Propulsion . | . . . Utility . | . . . Weapon . | . . . Parts Attached 7 | . . 7 Power 1 | . . 1 Engine 1 | . . 1 Core . | . . . Reactor . | . . . Propulsion 2 | . . 2 Treads . | . . . Leg . | . . . Wheel 2 | . . 2 Hover . | . . . Flight . | . . . Utility . | . . . Device . | . . . Storage . | . . . Processor . | . . . Hackware . | . . . Protection . | . . . Artifact . | . . . Weapon 4 | . . 4 Energy Gun . | . . . Energy Cannon . | . . . Ballistic Gun 4 | . . 4 Ballistic Cannon . | . . . Launcher . | . . . Special Weapon . | . . . Impact Weapon . | . . . Slashing Weapon . | . . . Piercing Weapon . | . . . Special Melee Weapon . | . . . Unidentified Prototypes . | . . . Parts Lost 7 | . 1 6 Power 1 | . . 1 Propulsion 2 | . . 2 Utility . | . . . Weapon 4 | . 1 3 Highest Loss Streak 6 | . 1 6 Average Slot Usage (%) 73 | . 82 68 Engine 12 | . 14 12 Leg 26 | . 28 25 Storage 14 | . 14 14 Ballistic Gun 18 | . 25 14 Naked Turns . | . . . Heaviest Build 10 | 10 10 10 Greatest Support 26 | 20 20 26 Greatest Overweight (x) . | . . . Average Overweight (x) . | . . . Largest Inventory Capacity 6 | . 6 6 Average Capacity 6 | . 6 6 Most Carried 6 | . 6 6 Average Carried 5 | . 6 5 Final Capacity 6 | 6 6 6 Final Carried 6 | 6 6 2 Class Distribution -------------------- 100% | Mutant Dominant Class ---------------- Mutant | -10/Materials Mutant | -10/Mines Resources | -11 -10 -10 ----------- Run | Scr Mat Min Matter Collected 277 | 178 78 21 Remotely . | . . . Salvage Created 216 | . 159 57 Parts 14 | . 10 4 Haulers Intercepted . | . . . Recyclers Shooed . | . . . Parts Field Recycled . | . . . Retrieved Matter . | . . . Parts Self-Destructed . | . . . Prevented . | . . . Kills | -11 -10 -10 ------- Run | Scr Mat Min Combat Hostiles Destroyed 5 | . 1 4 Guns 5 | . 1 4 Classes Destroyed 5 | . 4 1 Tunneler 1 | . 1 . Recycler 1 | . 1 . Operator 1 | . 1 . Swarmer 4 | . . 4 Grunt 1 | . 1 . Best Kill Streak 4 | . 4 3 Combat Bots Only 3 | . 1 3 Max Kills in Single Turn 2 | . 2 1 Gunslinging . | . . . Exploded . | . . . Melee . | . . . Uniques/NPCs Destroyed . | . . . Combat | -11 -10 -10 -------- Run | Scr Mat Min Damage Taken 945 | . 353 592 Core 251 | . 62 189 Absorbed by Shields . | . . . Core Remaining (%) 100 | 100 . . Volleys Fired 34 | . 16 18 Largest 2 | . 2 2 Hottest 40 | . 40 40 Shots Fired 54 | . 32 22 Gun 54 | . 32 22 Cannon . | . . . Launcher . | . . . Special . | . . . Kinetic 54 | . 32 22 Thermal . | . . . Explosive . | . . . Electromagnetic . | . . . Robot Hit Streak 8 | . 8 6 Robot Miss Streak 4 | . 2 4 Penetration Max . | . . . Secondary Targets . | . . . Shots Hit Robots 36 | . 21 15 Core Hits 16 | . 8 8 Critical Hits 1 | . 1 . Critical Kills . | . . . Critical Parts Destroyed 1 | . 1 . Melee Attacks . | . . . Impact . | . . . Slashing . | . . . Piercing . | . . . Sneak Attacks . | . . . Combat Hostiles . | . . . Follow-up Attacks . | . . . Damage Inflicted 371 | . 226 145 Guns 371 | . 226 145 Cannons . | . . . Explosions . | . . . Melee . | . . . Ramming . | . . . Kinetic 371 | . 226 145 Thermal . | . . . Explosive . | . . . Electromagnetic . | . . . Impact . | . . . Slashing . | . . . Piercing . | . . . Highest Corruption . | . . . Average Corruption . | . . . Corruption Purged . | . . . Overload Shots . | . . . Overflow Damage . | . . . Projectiles . | . . . Explosions . | . . . Melee . | . . . Knockbacks . | . . . Impact . | . . . Kinetic . | . . . Secondary . | . . . Self-Inflicted Damage . | . . . Shots . | . . . Rammed . | . . . Targets Rammed . | . . . Kicked . | . . . Crushed . | . . . Highest Temperature 15 | . 12 15 Average Temperature 7 | . 6 9 Received Heat Transfer 264 | . 78 186 Siege Activations . | . . . Robots Corrupted . | . . . Combat Hostiles . | . . . Parts Fried . | . . . Impact Corruptions . | . . . Robots Melted . | . . . Combat Hostiles . | . . . Parts Melted . | . . . Heat Transferred . | . . . Parts Sabotaged . | . . . Parts Stolen . | . . . Parts Stripped . | . . . Power Chain Reactions . | . . . Missiles Intercepted . | . . . Alert | -11 -10 -10 ------- Run | Scr Mat Min Peak Influence 95 | . 65 95 Average Influence 37 | . 35 37 Maximum Alert Level . | . . . Low Security (%) 100 | . 100 100 Level 1 . | . . . Level 2 . | . . . Level 3 . | . . . Level 4 . | . . . Level 5 . | . . . High Security . | . . . Max Security . | . . . Squads Dispatched 1 | . 1 . Investigation . | . . . Extermination . | . . . Reinforcement 1 | . 1 . Assault . | . . . Garrison . | . . . Intercept . | . . . Construction Impeded . | . . . Haulers Reinforced . | . . . Stealth | -11 -10 -10 --------- Run | Scr Mat Min Distress Signals 3 | . 3 . Communications Jammed . | . . . Distress Signals . | . . . Times Spotted 16 | . 8 8 Peak Tracking Total 5 | . 3 5 Tactical Retreats . | . . . Traps | -11 -10 -10 ------- Run | Scr Mat Min Traps Triggered . | . . . Indirectly . | . . . Trap Hack Attempts . | . . . Triggered . | . . . Disarmed . | . . . Reprogrammed . | . . . Reused . | . . . Traps Extracted . | . . . Installed . | . . . Triggered . | . . . Machines | -11 -10 -10 ---------- Run | Scr Mat Min Machines Disabled . | . . . Max in Single Turn . | . . . Machines Sabotaged . | . . . Garrisons Compromised . | . . . Overloaded Fab Kills . | . . . Fab Network Shutdowns . | . . . Hacking | -11 -10 -10 --------- Run | Scr Mat Min Machines Accessed . | . . . Terminals . | . . . Fabricators . | . . . Repair Stations . | . . . Recycling Units . | . . . Scanalyzers . | . . . Garrison Access . | . . . Total Hacks . | . . . Successful . | . . . Failed . | . . . Catastrophic . | . . . Database Lockouts . | . . . Manual . | . . . Terminals . | . . . Fabricators . | . . . Repair Stations . | . . . Recycling Units . | . . . Scanalyzers . | . . . Garrison Access . | . . . Terminal Hacks . | . . . Fabricator Hacks . | . . . Repair Station Hacks . | . . . Recycling Unit Hacks . | . . . Scanalyzer . | . . . Garrison Access Hacks . | . . . Unauthorized Hacks . | . . . Terminals . | . . . Fabricators . | . . . Repair Stations . | . . . Recycling Units . | . . . Scanalyzers . | . . . Garrison Access . | . . . Data Cores Recovered . | . . . Used . | . . . Hacking Detections . | . . . Full Trace Events . | . . . Feedback Events . | . . . Feedback Blocked . | . . . Robot Schematics Acquired . | . . . Robots Built . | . . . Matter . | . . . Time . | . . . Total Robot Build Rating . | . . . Part Schematics Acquired . | . . . Parts Built . | . . . Matter . | . . . Time . | . . . Total Part Build Rating . | . . . Parts Repaired . | . . . Time . | . . . Parts Recycled . | . . . Recycled Matter . | . . . Retrieved Matter . | . . . Retrieved Components . | . . . Parts Scanalyzed . | . . . Part Schematics Acquired . | . . . Parts Damaged . | . . . Bothacking | -11 -10 -10 ------------ Run | Scr Mat Min Used RIF Installer . | . . . Robots Hacked . | . . . Non-combat . | . . . Combat . | . . . Robot Hacks Applied . | . . . Relay Couplers Released . | . . . Robots Rewired . | . . . Allies Hacked . | . . . Hacks Repelled . | . . . Allies | -11 -10 -10 -------- Run | Scr Mat Min Total Allies . | . . . Largest Group . | . . . Highest-Rated Group . | . . . Highest-Rated Ally . | . . . Total Orders . | . . . Ally Attacks . | . . . Total Damage . | . . . Kills . | . . . Allies Corrupted . | . . . Allies Melted . | . . . Intel | -11 -10 -10 ------- Run | Scr Mat Min Robot Analysis Total . | . . . Derelict Logs Recovered . | . . . Drone Launches . | . . . Drone Recoveries . | . . . Exploration | -11 -10 -10 ------------- Run | Scr Mat Min Turns Passed 406 | . 143 263 Spaces Moved 263 | 1 81 181 Core . | . . . Treads . | . . . Legs 261 | 1 81 179 Wheels 2 | . . 2 Hover . | . . . Flight . | . . . Fastest Speed 90 | 120 120 90 Average Speed 119 | 120 120 119 Slowest Speed 120 | 120 120 120 Overloaded Moves . | . . . Propulsion Burnouts . | . . . Robots Hopped . | . . . Cave-ins Triggered . | . . . Exploration Rate (%) 22 | 2 31 33 Regions Visited 2 Branch Regions 1 Pre-discovered Areas . | . . . Known Exits Taken . | . . . Unknown Exits Taken 2 | 1 1 . Scrap Searched . | . . . Spaces Dug . | . . . Terrain Destroyed . | . . . Melee . | . . . Projectile . | . . . AOE . | . . . Actions | -11 -10 -10 --------- Run | Scr Mat Min Total 304 | . 98 206 Wait . | . . . Move 261 | . 80 181 Hop . | . . . Pick Up 1 | . 1 . Fast Attach 2 | . . 2 Attach 4 | . . 4 Detach . | . . . Swap 1 | . . 1 Drop 1 | . 1 . Fire 34 | . 16 18 Melee . | . . . Ram . | . . . Kick . | . . . Crush . | . . . Escape Stasis . | . . . Rewire . | . . . Trap . | . . . Miscellaneous . | . . . Route ------- -11/Scrapyard -10/Materials -10/Mines (discovered 2 exits: [*Mat x2]) History --------- Turn | Location | Event 1 | -11/Scrapyard | Discovered new exit (range 0) 1 | -11/Scrapyard | Entered Materials 92 | -10/Materials | Met 8R-AWN 104 | -10/Materials | Attacked by 8R-AWN 126 | -10/Materials | Discovered new exit (range 16) 144 | -10/Materials | Entered Mines 150 | -10/Mines | Discovered new exit (range 9) 250 | -10/Mines | Discovered new exit (range 7) 318 | -10/Mines | Build established: Mutant 386 | -10/Mines | Core integrity fell below 50% 400 | -10/Mines | Core integrity fell below 20% 407 | -10/Mines | Destroyed by S-10 Pest with Light Assault Rifle Last Messages --------------- GOAL=ESCAPE Something is scanning the area. 00150_ EXIT=FOUND 00176_ K-01 Serf collects debris. 00250_ EXIT=FOUND 00252_ K-01 Serf collects debris. 00342_ S-10 Pest destroyed. 00356_ Acquired 15 matter. 00357_ Acquired 6 matter. 00363_ Acquired Lgt. Assault Rifle. 00367_ R-06 Scavenger collects Flight Unit. 00374_ Lgt. Ion Engine destroyed. 00375_ Aluminum Leg destroyed. 00382_ Assault Rifle destroyed. 00389_ Aluminum Leg destroyed. 00390_ S-10 Pest destroyed. 00395_ Lgt. Assault Rifle destroyed. 00401_ R-06 Scavenger collects Lgt. Ion Engine. 00404_ Acquired Lgt. Assault Rifle. 00406_ R-06 Scavenger collects Lgt. Ion Engine. Map ----- +----------------------------------------------------+ | | | | | | | | | | | | | ???????????????????????????????????????????????? | | ???????????????????????????????????????????????? | | ???????????????????????????????????????????????? | | ???????????????????????????????????????????????? | | ???????????????????????????????????????????????? | | ???????????????????????????????????????????????? | | ???????????????????????????????????????????????? | | ???????????????????????????????????????????????? | | ??????????????????####?????????????????????????? | | ??????????????????# ?????????????????????????? | | ?????????????????? ?????????????????????????? | | ?????????????????? ?????????????????????????? | | ??????????????????? #????????????????????????? | | ??????????????????? #????????????????????????? | | ???????????????????# #????????????????????????? | | ?????????????????### ????????????????????????? | | ?????????????????? #????????????????????????? | | ???????????????????#s ##???????????????????????? | | ???????????????????# g##??????????????????????? | | ????????????????????#gr@##?????????????????????? | | ????????????????????# #?????????????????????? | | ????????????????????# #?????????????????????? | | ????????????????????## ##?????????????????????? | | ?????????????????????# ##??????????????????????? | | ?????????????????????# #???????????????????????? | | ?????????????????????# #????####???????????????? | | ?????????????????????# #????# ######?????????? | | ?????????????????????# #????? ##????????? | | ?????????????????????#%#????? #????????? | | ?????????????????????# #????? ?????????? | | ?????????????????????# #?????? ??????????? | | ?????????????????????#%#?????? ???????????? | | ?????????????????????# #??????# #????????????? | | ?????????????????????# #??????# #?????????????? | | ?????????????????????# ######## ### ? | | ?????????????????????# ? | | ?????????????????????########## # ? | | ????????##????????????????????# #???? ? | | ??????## ##???????????????????# #???????? ?? | | ?????## #???????????????????# #?????????????? | | ?????# #???????????????????# #?????????????? | | ?????# #???????????????????# #?????????????? | | ?????## #???????????????????# #?????????????? | | ?????## #??####?????????????# #?????????????? | +----------------------------------------------------+ Best States ------------- Heat Dissipation 25 Energy Generation 10 Energy Capacity 125 Matter Stores 300 Matter Capacity 300 Sight Range 16 Terrain Scan Density 10 Evasion (%) 40 Item Schematics ----------------- None Robot Schematics ------------------ None Fabricated ------------ Nothing Alien Tech Used ----------------- None Achievements -------------- None Challenges ------------ None Game ------ Seed PhasingBehemothKit Manual? 0 Play Time 00:02:59 Cumulative 313.3 hours Start 2020.06.14 @ 14:30:03 End 2020.06.14 @ 14:32:03 Sessions 1 Manual Loads 0 Difficulty Rogue Special Mode None Game No. 343 Rogue 343 Adventurer 0 Explorer 0 Win Type - Total 29 Types 17/3/2/1/2/1/3 Lore% 93 Gallery% 87 Achievement% 78 Wizard Run 0 Options --------- ASCII 0 Keyboard 0 Movement Arrows Keybinds 0 Fullscreen 2 Font 18/SmallcapsGlow Map View 76x50 Tactical HUD 1 Map Filters NONE Filters NONE Steam 1 RUN: 18134be1-13c3-402c-beb7-133dff5b9447